fUST/lending_fUST_20250822
["ID","MTS","AMOUNT","RATE_DAILY","PERIOD"]
[380504504,1755796249744,-878.34,0.00020287,2]
[380504506,1755796249753,-625.09,0.00020287,2]
[380504508,1755796249763,-480.0,0.00020287,2]
[380504510,1755796249774,-480.0,0.00020287,2]
[380504512,1755796249783,-266.29510944,0.00020287,2]
[380504514,1755796249793,-480.0,0.00020287,2]
[380504516,1755796249803,-480.0,0.00020287,2]
[380504518,1755796249812,-480.0,0.00020287,2]
[380504520,1755796249822,-480.0,0.00020287,2]
[380504522,1755796249832,-271.47731221,0.00020287,2]
[380504524,1755796249842,-480.0,0.00020287,2]
[380504526,1755796249851,-415.08427067,0.00020287,2]
[380504528,1755796249861,-662.68,0.00020287,2]
[380504530,1755796249871,-480.0,0.00020287,2]
[380504532,1755796249882,-486.45,0.00020287,2]
[380504534,1755796249895,-480.0,0.00020287,2]
[380504536,1755796249904,-480.0,0.00020287,2]
[380504538,1755796249915,-594.84319749,0.00020287,2]
[380504540,1755796249926,-741.24,0.00020287,2]
[380504542,1755796249937,-480.0,0.00020287,2]
[380504544,1755796249947,-480.0,0.00020287,2]
[380504546,1755796249956,-490.79,0.00020287,2]
[380504548,1755796249966,-839.98,0.00020287,2]
[380504550,1755796249975,-480.0,0.00020287,2]
[380504552,1755796249985,-480.0,0.00020287,2]
[380504554,1755796249994,-480.0,0.00020287,2]
[380504556,1755796250004,-617.8,0.00020287,2]
[380504558,1755796250013,-480.0,0.00020287,2]
[380504560,1755796250023,-756.41,0.00020287,2]
[380504562,1755796250032,-480.0,0.00020287,2]
[380504564,1755796250041,-988.19,0.00020287,2]
[380504566,1755796250051,-719.39,0.00020287,2]
[380504568,1755796250061,-480.0,0.00020287,2]
[380504570,1755796250071,-480.0,0.00020287,2]
[380504572,1755796250089,-896.1,0.00020287,2]
[380504574,1755796250099,-735.04,0.00020287,2]
[380504576,1755796250108,-526.43,0.00020287,2]
[380504578,1755796250118,-751.72,0.00020287,2]
[380504580,1755796250127,-480.0,0.00020287,2]
[380504582,1755796250137,-1889.29,0.00020287,2]
[380504584,1755796250146,-480.0,0.00020287,2]
[380504586,1755796250155,-480.0,0.00020287,2]
[380504588,1755796250165,-480.0,0.00020299,2]
[380504590,1755796250176,-480.0,0.00020299,2]
[380504593,1755796250189,-480.0,0.00020299,2]
[380504595,1755796250199,-480.0,0.00020299,2]
[380504597,1755796250208,-151.0,0.000203,3]
[380504599,1755796250218,-1005.61033,0.00020321,2]
[380504600,1755796250227,-1000.0,0.00020321,2]
[380504602,1755796250237,-1118.61357223,0.00020321,2]
[380504604,1755796250246,-877.11592273,0.00020321,2]
[380504606,1755796250255,-3561.9470773,0.0002036,2]
[380504608,1755796250265,-151.0,0.000204,3]
[380504610,1755796250274,-160.0,0.00020425,2]
[380504612,1755796250283,-160.0,0.00020425,2]
[380504614,1755796250293,-160.0,0.00020425,2]
[380504617,1755796250303,-160.0,0.00020425,2]
[380504619,1755796250313,-844.19128999,0.00020425,2]
[380504621,1755796250323,-160.0,0.00020425,2]
[380504622,1755796250333,-232.28399145,0.00020425,2]
[380504624,1755796250342,-160.0,0.00020425,2]
[380504627,1755796250353,-216.95272161,0.00020425,2]
[380504629,1755796250366,-160.0,0.00020425,2]
[380504631,1755796250375,-215.86710461,0.00020425,2]
[380504633,1755796250384,-160.0,0.00020428,2]
[380504635,1755796250394,-376.00439007,0.00020428,2]
[380504637,1755796250404,-237.2109269,0.0002044,2]
[380504639,1755796250413,-553.68,0.00020444,2]
[380504641,1755796250423,-952.91,0.00020444,2]
[380504643,1755796250435,-1069.9,0.00020444,2]
[380504645,1755796250447,-841.6,0.00020444,2]
[380504647,1755796250457,-1098.95,0.00020444,2]
[380504649,1755796250466,-480.0,0.00020444,2]
[380504651,1755796250475,-5724.64,0.00020445,2]
[380504653,1755796250484,-480.0,0.00020445,2]
[380504655,1755796250494,-3111.45,0.00020445,2]
[380504657,1755796250503,-638.16,0.00020445,2]
[380504659,1755796250513,-1517.06,0.00020445,2]
[380504661,1755796250522,-1101.04,0.00020445,2]
[380504663,1755796250533,-480.0,0.00020445,2]
[380504665,1755796250543,-480.0,0.00020445,2]
[380504667,1755796250552,-4775.52,0.00020445,2]
[380504669,1755796250562,-6987.43,0.00020445,2]
[380504671,1755796250572,-3878.59,0.00020445,2]
[380504673,1755796250582,-151.0,0.00020445,2]
[380504675,1755796250592,-151.0,0.00020445,2]
[380504677,1755796250602,-1093.09,0.00020445,2]
[380504678,1755796250612,-151.0,0.00020445,2]
[380504680,1755796250623,-480.0,0.00020445,2]
[380504682,1755796250633,-175.808713,0.00020445,2]
[380504684,1755796250643,-151.0,0.00020445,2]
[380504686,1755796250652,-2831.65,0.00020445,2]
[380504688,1755796250663,-899.66,0.00020445,2]
[380504690,1755796250671,-151.0,0.00020445,2]
[380504692,1755796250683,-151.0,0.00020445,2]
[380504694,1755796250692,-151.0,0.00020445,2]
[380504696,1755796250702,-175.808713,0.00020445,2]
[380504698,1755796250712,-151.0,0.00020445,2]
[380504700,1755796250721,-151.0,0.00020445,2]
[380504702,1755796250731,-175.808713,0.00020445,2]
[380504704,1755796250740,-151.0,0.00020445,2]
[380504706,1755796250749,-175.808713,0.00020445,2]
[380504708,1755796250759,-3918.0,0.00020445,2]
[380504710,1755796250768,-1555.41,0.00020445,2]
[380504712,1755796250778,-480.0,0.00020445,2]
[380504714,1755796250787,-480.0,0.00020445,2]
[380504716,1755796250796,-596.22,0.00020445,2]
[380504718,1755796250806,-708.6,0.00020445,2]
[380504720,1755796250816,-1773.59,0.00020445,2]
[380504722,1755796250825,-200.0,0.00020446,2]
[380504724,1755796250835,-200.0,0.00020446,2]
[380504726,1755796250844,-202.68736873,0.00020446,2]
[380504728,1755796250854,-704.13,0.00020447,2]
[380504730,1755796250863,-845.88,0.00020447,2]
[380504732,1755796250873,-480.0,0.00020447,2]
[380504734,1755796250882,-480.0,0.00020447,2]
[380504736,1755796250895,-480.0,0.00020447,2]
[380504738,1755796250907,-480.0,0.00020447,2]
[380504740,1755796250918,-480.0,0.00020447,2]
[380504742,1755796250928,-480.0,0.00020447,2]
[380504744,1755796250940,-480.0,0.00020447,2]
[380504746,1755796250950,-480.0,0.00020447,2]
[380504748,1755796250961,-480.0,0.00020447,2]
[380504750,1755796250972,-480.0,0.00020447,2]
[380504752,1755796250982,-480.0,0.00020447,2]
[380504754,1755796250992,-1251.4,0.00020447,2]
[380504756,1755796251002,-480.0,0.00020447,2]
[380504758,1755796251011,-1860.53,0.00020447,2]
[380504760,1755796251021,-480.0,0.00020447,2]
[380504762,1755796251031,-1217.86,0.00020447,2]
[380504764,1755796251041,-272.32957479,0.00020447,2]
[380504766,1755796251051,-584.1,0.00020447,2]
[380504768,1755796251060,-480.0,0.00020447,2]
[380504770,1755796251071,-566.7,0.00020447,2]
[380504772,1755796251081,-480.0,0.00020447,2]
[380504774,1755796251091,-480.0,0.00020447,2]
[380504776,1755796251101,-480.0,0.00020447,2]
[380504778,1755796251110,-151.0,0.00020447,2]
[380504780,1755796251120,-167.923566,0.00020447,2]
[380504782,1755796251129,-151.0,0.00020447,2]
[380504784,1755796251139,-151.0,0.00020447,2]
[380504786,1755796251150,-151.0,0.00020447,2]
[380504788,1755796251160,-151.0,0.00020447,2]
[380504790,1755796251170,-480.0,0.00020447,2]
[380504793,1755796251181,-151.0,0.00020447,2]
[380504795,1755796251192,-151.0,0.00020447,2]
[380504797,1755796251202,-303.340635,0.00020447,2]
[380504799,1755796251212,-151.0,0.00020447,2]
[380504801,1755796251221,-303.340635,0.00020447,2]
[380504803,1755796251231,-151.000001,0.00020447,2]
[380504805,1755796251242,-480.0,0.00020447,2]
[380504807,1755796251252,-535.34192878,0.00020447,2]
[380504809,1755796251261,-253.823847,0.00020447,2]
[380504811,1755796251272,-480.0,0.00020447,2]
[380504813,1755796251281,-253.823847,0.00020447,2]
[380504815,1755796251291,-1339.59,0.00020447,2]
[380504817,1755796251302,-253.823847,0.00020447,2]
[380504819,1755796251312,-151.0,0.00020447,2]
[380504821,1755796251322,-151.0,0.00020447,2]
[380504823,1755796251332,-253.823847,0.00020447,2]
[380504825,1755796251342,-156.856735,0.00020447,2]
[380504827,1755796251355,-151.0,0.00020447,2]
[380504829,1755796251371,-764.64,0.00020447,2]
[380504830,1755796251381,-1403.75,0.00020447,2]
[380504832,1755796251391,-151.873512,0.00020447,2]
[380504834,1755796251403,-151.0,0.00020447,2]
[380504836,1755796251413,-151.0,0.00020447,2]
[380504838,1755796251423,-151.0,0.00020447,2]
[380504840,1755796251433,-151.0,0.00020447,2]
[380504842,1755796251444,-480.0,0.00020447,2]
[380504844,1755796251455,-493.09,0.00020447,2]
[380504847,1755796251464,-151.0,0.00020447,2]
[380504849,1755796251474,-1591.86,0.00020447,2]
[380504851,1755796251484,-1264.66,0.00020447,2]
[380504853,1755796251494,-151.0,0.00020447,2]
[380504855,1755796251504,-480.0,0.00020447,2]
[380504857,1755796251513,-480.0,0.00020447,2]
[380504859,1755796251523,-480.0,0.00020447,2]
[380504861,1755796251532,-638.49,0.00020447,2]
[380504863,1755796251542,-480.0,0.00020447,2]
[380504865,1755796251552,-151.0,0.00020447,2]
[380504866,1755796251562,-151.0,0.00020447,2]
[380504868,1755796251572,-151.0,0.00020447,2]
[380504870,1755796251582,-898.89,0.00020447,2]
[380504872,1755796251592,-151.0,0.00020447,2]
[380504874,1755796251601,-151.0,0.00020447,2]
[380504876,1755796251611,-712.51,0.00020447,2]
[380504878,1755796251621,-151.0,0.00020447,2]
[380504880,1755796251630,-151.0,0.00020447,2]
[380504882,1755796251640,-151.0,0.00020447,2]
[380504884,1755796251650,-468.506121,0.00020447,2]
[380504886,1755796251660,-468.506121,0.00020447,2]
[380504888,1755796251670,-468.506121,0.00020447,2]
[380504890,1755796251681,-151.0,0.00020447,2]
[380504891,1755796251690,-151.0,0.00020447,2]
[380504892,1755796251700,-468.506121,0.00020447,2]
[380504893,1755796251710,-151.0,0.00020447,2]
[380504894,1755796251720,-151.0,0.00020447,2]
[380504895,1755796251730,-1704.85,0.00020447,2]
[380504896,1755796251740,-578.35,0.00020447,2]
[380504897,1755796251750,-151.0,0.00020447,2]
[380504898,1755796251760,-151.0,0.00020447,2]
[380504899,1755796251936,-1348.45,0.00020447,2]
[380504900,1755796251947,-151.0,0.00020447,2]
[380504901,1755796251956,-480.0,0.00020447,2]
[380504902,1755796251965,-151.0,0.00020447,2]
[380504903,1755796251975,-1316.255262,0.00020447,2]
[380504904,1755796251985,-480.0,0.00020447,2]
[380504905,1755796251994,-1316.255262,0.00020447,2]
[380504906,1755796252004,-1316.255262,0.00020447,2]
[380504907,1755796252013,-1316.255262,0.00020447,2]
[380504908,1755796252023,-1704.87,0.00020447,2]
[380504910,1755796252032,-151.0,0.00020447,2]
[380504911,1755796252041,-151.0,0.00020447,2]
[380504913,1755796252051,-1021.37,0.00020447,2]
[380504915,1755796252060,-151.0,0.00020447,2]
[380504917,1755796252069,-480.0,0.00020447,2]
[380504919,1755796252078,-2738.27,0.00020447,2]
[380504921,1755796252087,-764.6,0.00020447,2]
[380504923,1755796252097,-1669.08,0.00020447,2]
[380504925,1755796252106,-167.210458,0.00020447,2]
[380504927,1755796252115,-167.210458,0.00020447,2]
[380504929,1755796252125,-167.210458,0.00020447,2]
[380504931,1755796252134,-167.210458,0.00020447,2]
[380504933,1755796252144,-3186.28,0.00020447,2]
[380504935,1755796252153,-2363.46,0.00020447,2]
[380504937,1755796252163,-862.84,0.00020447,2]
[380504938,1755796252172,-480.0,0.00020447,2]
[380504940,1755796252182,-1526.94,0.00020447,2]
[380504942,1755796252191,-151.0,0.00020447,2]
[380504944,1755796252201,-151.0,0.00020447,2]
[380504946,1755796252210,-151.0,0.00020447,2]
[380504948,1755796252219,-151.0,0.00020447,2]
[380504950,1755796252228,-480.0,0.00020447,2]
[380504952,1755796252237,-517.72,0.00020447,2]
[380504954,1755796252247,-13490.57,0.00020447,2]
[380504956,1755796252257,-749.78,0.00020447,2]
[380504958,1755796252266,-151.0,0.00020447,2]
[380504960,1755796252276,-514.0,0.00020447,2]
[380504962,1755796252285,-480.0,0.00020447,2]
[380504964,1755796252295,-3003.54,0.00020447,2]
[380504966,1755796252304,-282.937359,0.00020447,2]
[380504968,1755796252314,-282.937359,0.00020447,2]
[380504970,1755796252323,-282.937359,0.00020447,2]
[380504972,1755796252332,-282.937359,0.00020447,2]
[380504974,1755796252341,-216.083392,0.00020447,2]
[380504976,1755796252350,-216.083392,0.00020447,2]
[380504978,1755796252360,-216.083392,0.00020447,2]
[380504980,1755796252373,-216.083392,0.00020447,2]
[380504982,1755796252382,-725.46,0.00020447,2]
[380504984,1755796252392,-480.0,0.00020447,2]
[380504986,1755796252402,-480.0,0.00020447,2]
[380504988,1755796252412,-12836.72,0.00020447,2]
[380504990,1755796252422,-480.0,0.00020447,2]
[380504992,1755796252434,-480.0,0.00020447,2]
[380504994,1755796252446,-1243.1,0.00020447,2]
[380504996,1755796252457,-222.56183928,0.00020447,2]
[380504998,1755796252468,-1609.93,0.00020447,2]
[380505000,1755796252479,-151.0,0.00020447,2]
[380505002,1755796252490,-480.0,0.00020447,2]
[380505004,1755796252501,-480.0,0.00020447,2]
[380505006,1755796252512,-480.0,0.00020447,2]
[380505008,1755796252522,-210.30027869,0.00020447,2]
[380505009,1755796252533,-8565.46,0.00020447,2]
[380505010,1755796252543,-151.0,0.00020447,2]
[380505011,1755796252553,-456.115824,0.00020447,2]
[380505012,1755796252565,-151.0,0.00020447,2]
[380505013,1755796252574,-456.115824,0.00020447,2]
[380505014,1755796252585,-480.0,0.00020447,2]
[380505015,1755796252596,-456.115824,0.00020447,2]
[380505016,1755796252606,-513.5,0.00020448,2]
[380505017,1755796252616,-2071.92,0.00020448,2]
[380505018,1755796252626,-1723.01,0.00020448,2]
[380505019,1755796252636,-390.93956601,0.00020448,2]
[380505020,1755796252646,-3623.53,0.00020448,2]
[380505021,1755796252656,-500.0,0.00020459,2]
[380505022,1755796252666,-480.0,0.00020459,2]
[380505023,1755796252675,-513.47,0.00020459,2]
[380505024,1755796252686,-480.0,0.00020459,2]
[380505025,1755796252696,-481.12,0.00020459,2]
[380505026,1755796252706,-1100.62,0.00020459,2]
[380505027,1755796252715,-676.36,0.00020459,2]
[380505028,1755796252725,-544.49,0.00020459,2]
[380505029,1755796252736,-480.0,0.00020459,2]
[380505030,1755796252745,-480.0,0.00020459,2]
[380505031,1755796252755,-773.22,0.00020459,2]
[380505032,1755796252766,-480.0,0.00020459,2]
[380505033,1755796252776,-1666.89,0.00020459,2]
[380505034,1755796252786,-480.0,0.00020459,2]
[380505035,1755796252795,-151.0,0.00020459,2]
[380505036,1755796252804,-151.0,0.00020459,2]
[380505037,1755796252814,-480.0,0.00020459,2]
[380505038,1755796252823,-574.32,0.00020459,2]
[380505039,1755796252832,-686.37,0.00020459,2]
[380505040,1755796252842,-151.0,0.00020459,2]
[380505041,1755796252851,-480.0,0.00020459,2]
[380505042,1755796252861,-200.0,0.00020459,2]
[380505043,1755796252871,-783.65,0.00020459,2]
[380505044,1755796252880,-991.06,0.00020459,2]
[380505045,1755796252892,-480.0,0.00020459,2]
[380505046,1755796252902,-200.0,0.00020459,2]
[380505047,1755796252911,-804.94,0.00020459,2]
[380505048,1755796252920,-480.0,0.00020459,2]
[380505049,1755796252931,-4916.94,0.00020459,2]
[380505050,1755796252940,-480.0,0.00020459,2]
[380505051,1755796252949,-1776.85,0.00020459,2]
[380505052,1755796252959,-918.37,0.00020459,2]
[380505053,1755796252969,-1076.14,0.00020459,2]
[380505054,1755796252979,-525.31,0.00020459,2]
[380505055,1755796252990,-2049.35,0.00020459,2]
[380505056,1755796253000,-480.0,0.00020459,2]
[380505057,1755796253010,-1215.14,0.00020459,2]
[380505058,1755796253020,-793.31,0.00020459,2]
[380505059,1755796253030,-480.0,0.0002046,2]
[380505060,1755796253040,-449.15259264,0.0002046,2]
[380505061,1755796253049,-1285.05,0.0002046,2]
[380505062,1755796253059,-884.72,0.0002046,2]
[380505063,1755796253068,-978.38,0.0002046,2]
[380505064,1755796253078,-480.0,0.0002046,2]
[380505065,1755796253087,-480.0,0.0002046,2]
[380505066,1755796253097,-480.0,0.0002046,2]
[380505067,1755796253107,-480.0,0.0002046,2]
[380505068,1755796253116,-801.62,0.0002046,2]
[380505069,1755796253126,-440.0,0.0002046,2]
[380505070,1755796253136,-1223.71,0.0002046,2]
[380505071,1755796253145,-677.58,0.0002046,2]
[380505072,1755796253154,-480.0,0.0002046,2]
[380505073,1755796253164,-480.0,0.0002046,2]
[380505074,1755796253174,-480.0,0.0002046,2]
[380505075,1755796253186,-480.0,0.0002046,2]
[380505076,1755796253198,-480.0,0.0002046,2]
[380505077,1755796253208,-566.96,0.0002046,2]
[380505078,1755796253218,-480.0,0.0002046,2]
[380505079,1755796253228,-480.0,0.0002046,2]
[380505080,1755796253238,-480.0,0.0002046,2]
[380505081,1755796253249,-480.0,0.0002046,2]
[380505082,1755796253259,-1649.16,0.0002046,2]
[380505083,1755796253269,-480.0,0.0002046,2]
[380505084,1755796253279,-480.0,0.0002046,2]
[380505085,1755796253289,-715.91,0.0002046,2]
[380505086,1755796253298,-480.0,0.0002046,2]
[380505087,1755796253308,-691.28,0.0002046,2]
[380505088,1755796253318,-480.0,0.0002046,2]
[380505089,1755796253327,-1001.2,0.0002046,2]
[380505090,1755796253338,-480.0,0.0002046,2]
[380505091,1755796253347,-480.0,0.0002046,2]
[380505092,1755796253358,-720.08,0.0002046,2]
[380505093,1755796253372,-480.0,0.0002046,2]
[380505094,1755796253382,-151.0,0.0002046,2]
[380505095,1755796253392,-823.48,0.0002046,2]
[380505096,1755796253402,-151.0,0.0002046,2]
[380505097,1755796253411,-480.0,0.0002046,2]
[380505098,1755796253422,-151.0,0.0002046,2]
[380505099,1755796253433,-151.0,0.0002046,2]
[380505100,1755796253444,-151.0,0.0002046,2]
[380505101,1755796253454,-151.0,0.0002046,2]
[380505102,1755796253463,-151.0,0.0002046,2]
[380505103,1755796253474,-151.0,0.0002046,2]
[380505104,1755796253484,-480.0,0.0002046,2]
[380505105,1755796253494,-480.0,0.0002046,2]
[380505106,1755796253504,-612.13,0.0002046,2]
[380505107,1755796253514,-502.96,0.0002046,2]
[380505108,1755796253524,-551.16,0.0002046,2]
[380505109,1755796253533,-529.97,0.0002046,2]
[380505110,1755796253546,-750.1,0.0002046,2]
[380505111,1755796253556,-3389.44,0.0002046,2]
[380505112,1755796253566,-469.91576214,0.0002046,2]
[380505113,1755796253578,-480.0,0.0002046,2]
[380505114,1755796253588,-480.0,0.0002046,2]
[380505115,1755796253598,-587.17,0.0002046,2]
[380505116,1755796253608,-563.81635792,0.0002046,2]
[380505117,1755796253618,-480.0,0.0002046,2]
[380505118,1755796253628,-480.0,0.0002046,2]
[380505119,1755796253638,-480.0,0.0002046,2]
[380505120,1755796253649,-480.0,0.0002046,2]
[380505121,1755796253659,-480.0,0.0002046,2]
[380505122,1755796253678,-630.38,0.0002046,2]
[380505123,1755796253689,-480.0,0.0002046,2]
[380505124,1755796253699,-480.0,0.0002046,2]
[380505125,1755796253709,-480.0,0.0002046,2]
[380505126,1755796253718,-754.78,0.0002046,2]
[380505127,1755796253728,-480.0,0.0002046,2]
[380505128,1755796253738,-480.0,0.0002046,2]
[380505129,1755796253748,-880.68,0.0002046,2]
[380505130,1755796253758,-1106.61,0.0002046,2]
[380505131,1755796253769,-1175.7,0.0002046,2]
[380505133,1755796253779,-500.0,0.00020473,2]
[380505135,1755796253789,-500.0,0.00020473,2]
[380505137,1755796253799,-500.0,0.00020473,2]
[380505138,1755796253809,-500.0,0.00020473,2]
[380505139,1755796253819,-500.0,0.00020473,2]
[380505140,1755796253829,-151.0,0.000205,4]
[380505141,1755796253840,-160.0,0.00020525,2]
[380505142,1755796253849,-480.0,0.00020561,2]
[380505143,1755796253860,-480.0,0.00020561,2]
[380505144,1755796253871,-480.0,0.00020561,2]
[380505145,1755796253880,-480.0,0.00020561,2]
[380505146,1755796253890,-480.0,0.00020561,2]
[380505147,1755796253900,-480.0,0.00020561,2]
[380505148,1755796253910,-480.0,0.00020561,2]
[380505149,1755796253919,-480.0,0.00020561,2]
[380505150,1755796253928,-494.99,0.00020561,2]
[380505151,1755796253940,-480.0,0.00020561,2]
[380505152,1755796253949,-480.0,0.00020561,2]
[380505153,1755796253959,-480.0,0.00020561,2]
[380505154,1755796253968,-480.0,0.00020561,2]
[380505155,1755796253977,-480.0,0.00020561,2]
[380505156,1755796253986,-480.0,0.00020561,2]
[380505157,1755796253996,-480.0,0.00020561,2]
[380505158,1755796254006,-480.0,0.00020561,2]
[380505159,1755796254016,-480.0,0.00020561,2]
[380505160,1755796254026,-480.0,0.00020561,2]
[380505161,1755796254035,-555.05,0.00020561,2]
[380505162,1755796254045,-662.68,0.00020561,2]
[380505163,1755796254054,-480.0,0.00020561,2]
[380505164,1755796254064,-480.0,0.00020561,2]
[380505165,1755796254074,-480.0,0.00020561,2]
[380505166,1755796254083,-504.0,0.00020561,2]
[380505167,1755796254093,-480.0,0.00020561,2]
[380505168,1755796254102,-480.0,0.00020561,2]
[380505169,1755796254111,-579.16,0.00020561,2]
[380505170,1755796254120,-878.34,0.00020561,2]
[380505171,1755796254129,-625.09,0.00020561,2]
[380505172,1755796254138,-480.0,0.00020561,2]
[380505173,1755796254147,-480.0,0.00020561,2]
[380505174,1755796254156,-482.8063766,0.00020561,2]
[380505175,1755796254165,-480.0,0.00020561,2]
[380505176,1755796254174,-480.0,0.00020561,2]
[380505177,1755796254184,-662.68,0.00020561,2]
[380505178,1755796254193,-480.0,0.00020561,2]
[380505179,1755796254202,-486.45,0.00020561,2]
[380505180,1755796254211,-480.0,0.00020561,2]
[380505181,1755796254220,-741.24,0.00020561,2]
[380505182,1755796254230,-480.0,0.00020561,2]
[380505183,1755796254240,-490.79,0.00020561,2]
[380505184,1755796254249,-839.98,0.00020561,2]
[380505185,1755796254258,-480.0,0.00020561,2]
[380505186,1755796254267,-480.0,0.00020561,2]
[380505187,1755796254277,-480.0,0.00020561,2]
[380505188,1755796254328,-617.8,0.00020561,2]
[380505189,1755796254338,-756.41,0.00020561,2]
[380505190,1755796254351,-480.0,0.00020561,2]
[380505191,1755796254361,-988.19,0.00020561,2]
[380505192,1755796254375,-719.39,0.00020561,2]
[380505193,1755796254384,-480.0,0.00020561,2]
[380505194,1755796254394,-896.1,0.00020561,2]
[380505195,1755796254404,-735.04,0.00020561,2]
[380505196,1755796254413,-526.43,0.00020561,2]
[380505197,1755796254422,-751.72,0.00020561,2]
[380505198,1755796254431,-480.0,0.00020561,2]
[380505199,1755796254441,-1889.29,0.00020561,2]
[380505200,1755796254452,-480.0,0.00020561,2]
[380505201,1755796254461,-480.0,0.00020561,2]
[380505202,1755796254470,-480.0,0.00020573,2]
[380505203,1755796254479,-480.0,0.00020573,2]
[380505204,1755796254488,-480.0,0.00020573,2]
[380505205,1755796254498,-151.0,0.00020573,2]
[380505206,1755796254507,-151.0,0.00020573,2]
[380505207,1755796254516,-190.357365,0.00020573,2]
[380505208,1755796254526,-151.0,0.00020573,2]
[380505209,1755796254535,-151.0,0.00020573,2]
[380505210,1755796254544,-151.0,0.00020573,2]
[380505211,1755796254553,-151.0,0.00020573,2]
[380505212,1755796254563,-480.0,0.00020573,2]
[380505213,1755796254573,-222.766115,0.00020573,2]
[380505214,1755796254584,-151.000002,0.00020573,2]
[380505215,1755796254593,-233.412459,0.00020573,2]
[380505216,1755796254603,-233.412459,0.00020573,2]
[380505217,1755796254613,-233.412459,0.00020573,2]
[380505218,1755796254624,-233.412459,0.00020573,2]
[380505219,1755796254634,-151.0,0.00020573,2]
[380505220,1755796254645,-151.0,0.00020573,2]
[380505221,1755796254663,-25376.14,0.000206,2]
[380505222,1755796254673,-3282.55882051,0.000206,2]
[380505223,1755796254682,-500.0,0.00020621,2]
[380505224,1755796254691,-500.0,0.00020621,2]
[380505225,1755796254701,-1000.0,0.00020621,2]
[380505226,1755796254711,-500.0,0.00020673,2]
[380505227,1755796254720,-522.25278604,0.00020673,2]
[380505228,1755796254730,-500.0,0.00020673,2]
[380505229,1755796254739,-171.71310917,0.00020673,2]
[380505230,1755796254749,-500.0,0.00020673,2]
[380505231,1755796254758,-500.0,0.00020673,2]
[380505232,1755796254767,-158.74962527,0.00020673,2]
[380505233,1755796254776,-500.7133127,0.00020673,2]
[380505234,1755796254785,-500.0,0.00020673,2]
[380505235,1755796254794,-500.0,0.00020673,2]
[380505236,1755796254804,-445.83391214,0.00020673,2]
[380505237,1755796254813,-500.0,0.00020673,2]
[380505238,1755796254822,-500.48816373,0.00020673,2]
[380505239,1755796254831,-500.0,0.00020673,2]
[380505240,1755796254841,-500.67528323,0.00020673,2]
[380505241,1755796254850,-560.96118353,0.00020673,2]
[380505242,1755796254859,-500.22262273,0.00020673,2]
[380505243,1755796254868,-500.0,0.00020673,2]
[380505244,1755796254878,-500.0,0.00020673,2]
[380505245,1755796254887,-500.0,0.00020673,2]
[380505246,1755796254897,-500.0,0.00020673,2]
[380505247,1755796254907,-201.64454251,0.00020699,2]
[380505248,1755796254916,-2366.11420382,0.000207,2]